fUSD/lending_fUSD_20260507
["ID","MTS","AMOUNT","RATE_DAILY","PERIOD"]
[421786751,1778154710000,-200.0,0.00028825,2]
[421786713,1778154710000,-800.0,0.0002834,2]
[421786755,1778154710000,-327.0,0.00028825,2]
[421786753,1778154710000,-200.0,0.00028825,2]
[421786738,1778154710000,-150.0,0.00028754,2]
[421786734,1778154710000,-156.71,0.00028753,2]
[421786756,1778154710000,-156.71,0.00028833,30]
[421786735,1778154710000,-150.0,0.00028754,2]
[421786736,1778154710000,-150.0,0.00028754,2]
[421786712,1778154710000,-800.0,0.0002834,2]
[421786720,1778154710000,-290.0,0.00028406,10]
[421786716,1778154710000,-800.0,0.0002834,2]
[421786710,1778154710000,-800.0,0.0002834,2]
[421786714,1778154710000,-800.0,0.0002834,2]
[421786715,1778154710000,-800.0,0.0002834,2]
[421786717,1778154710000,-658.0,0.0002834,2]
[421786718,1778154710000,-332.81043525,0.00028404,2]
[421786721,1778154710000,-188.05,0.00028406,7]
[421786719,1778154710000,-668.0,0.00028406,10]
[421786725,1778154710000,-323.13,0.00028633,2]
[421786723,1778154710000,-350.0,0.00028493,5]
[421786724,1778154710000,-152.0,0.00028605,3]
[421786727,1778154710000,-323.13,0.00028664,7]
[421786729,1778154710000,-188.05,0.00028695,30]
[421786730,1778154710000,-323.13,0.00028696,30]
[421786726,1778154710000,-156.71,0.00028634,2]
[421786728,1778154710000,-156.71,0.00028673,7]
[421786732,1778154710000,-156.71,0.00028713,30]
[421786731,1778154710000,-476.0869614,0.00028699,2]
[421786722,1778154710000,-850.0,0.00028493,5]
[421786788,1778154711000,-188.05,0.00029271,7]
[421786786,1778154711000,-156.77,0.00029232,2]
[421786785,1778154711000,-323.13,0.00029201,2]
[421786784,1778154711000,-1561.01,0.000292,7]
[421786783,1778154711000,-156.71,0.00029192,30]
[421786782,1778154711000,-323.13,0.00029169,30]
[421786779,1778154711000,-156.71,0.00029113,2]
[421786787,1778154711000,-323.16,0.00029232,7]
[421786789,1778154711000,-2033.59776628,0.00029452,30]
[421786790,1778154711000,-150.0,0.00029534,2]
[421786794,1778154711000,-1041.51225904,0.00029703,7]
[421786792,1778154711000,-1050.0,0.00029589,5]
[421786793,1778154711000,-152.0,0.00029603,4]
[421786795,1778154711000,-150.0,0.00029834,2]
[421786796,1778154711000,-188.05,0.00029848,2]
[421786799,1778154711000,-8000.0,0.0003,3]
[421786798,1778154711000,-240.33788017,0.0002999,2]
[421786780,1778154711000,-323.13,0.00029138,7]
[421786797,1778154711000,-47518.88416055,0.000299,2]
[421786791,1778154711000,-188.05,0.0002956,30]
[421786781,1778154711000,-156.71,0.00029153,7]
[421786766,1778154711000,-323.13,0.0002898,30]
[421786778,1778154711000,-323.13,0.00029106,2]
[421786801,1778154711000,-323.50049538,0.0003,2]
[421786759,1778154711000,-156.71,0.00028873,2]
[421786758,1778154711000,-323.13,0.00028854,7]
[421786760,1778154711000,-323.13,0.00028885,30]
[421786762,1778154711000,-323.13,0.00028917,2]
[421786761,1778154711000,-156.71,0.00028913,7]
[421786763,1778154711000,-323.13,0.00028948,7]
[421786765,1778154711000,-8632.0499295,0.00028967,2]
[421786764,1778154711000,-156.71,0.00028953,30]
[421786767,1778154711000,-188.05,0.00028983,2]
[421786769,1778154711000,-5000.0,0.00029,2]
[421786773,1778154711000,-950.0,0.00029041,5]
[421786771,1778154711000,-323.13,0.00029011,2]
[421786770,1778154711000,-214.63993676,0.00029,30]
[421786772,1778154711000,-156.71,0.00029033,7]
[421786768,1778154711000,-156.71,0.00028993,2]
[421786774,1778154711000,-300.0,0.00029041,5]
[421786776,1778154711000,-156.71,0.00029073,30]
[421786775,1778154711000,-323.13,0.00029043,7]
[421786777,1778154711000,-323.13,0.00029075,30]
[421786800,1778154711000,-20135.66602461,0.0003,2]
[421786836,1778154711000,-1033.57,0.00030065,30]
[421786803,1778154711000,-584.70522077,0.0003,4]
[421786827,1778154711000,-2000.0,0.00030037,7]
[421786829,1778154711000,-1916.83374946,0.00030037,7]
[421786828,1778154711000,-2000.0,0.00030037,7]
[421786846,1778154711000,-1033.57,0.00030106,30]
[421786831,1778154711000,-1033.57,0.00030045,30]
[421786833,1778154711000,-1033.57,0.00030053,30]
[421786834,1778154711000,-1033.57,0.00030057,30]
[421786832,1778154711000,-1033.57,0.00030049,30]
[421786837,1778154711000,-1033.57,0.00030069,30]
[421786835,1778154711000,-1033.57,0.00030061,30]
[421786839,1778154711000,-1033.57,0.00030078,30]
[421786838,1778154711000,-1033.57,0.00030073,30]
[421786841,1778154711000,-1033.57,0.00030086,30]
[421786840,1778154711000,-1033.57,0.00030082,30]
[421786844,1778154711000,-1033.57,0.00030098,30]
[421786842,1778154711000,-1033.57,0.0003009,30]
[421786845,1778154711000,-1033.57,0.00030102,30]
[421786843,1778154711000,-1033.57,0.00030094,30]
[421786811,1778154711000,-1033.57,0.0003,30]
[421786824,1778154711000,-2000.0,0.00030037,7]
[421786826,1778154711000,-2000.0,0.00030037,7]
[421786830,1778154711000,-1033.57,0.00030041,30]
[421786822,1778154711000,-1033.57,0.00030033,30]
[421786802,1778154711000,-1842.06093466,0.0003,2]
[421786807,1778154711000,-7503.51,0.0003,7]
[421786804,1778154711000,-165.20186553,0.0003,2]
[421786810,1778154711000,-214.63993676,0.0003,3]
[421786806,1778154711000,-176798.36565113,0.0003,60]
[421786825,1778154711000,-2000.0,0.00030037,7]
[421786805,1778154711000,-310.728139,0.0003,2]
[421786809,1778154711000,-10315.80031009,0.0003,5]
[421786812,1778154711000,-200.0,0.0003,2]
[421786808,1778154711000,-5000.0,0.0003,2]
[421786814,1778154711000,-200.0,0.0003,2]
[421786823,1778154711000,-1033.57,0.00030037,30]
[421786818,1778154711000,-1033.57,0.00030016,30]
[421786815,1778154711000,-1033.57,0.00030004,30]
[421786817,1778154711000,-1033.57,0.00030012,30]
[421786821,1778154711000,-1033.57,0.00030029,30]
[421786816,1778154711000,-1033.57,0.00030008,30]
[421786820,1778154711000,-1033.57,0.00030024,30]
[421786813,1778154711000,-200.0,0.0003,2]
[421786819,1778154711000,-1033.57,0.0003002,30]
[421786875,1778154712000,-1033.57,0.00030155,30]
[421786889,1778154712000,-517.79,0.00030237,7]
[421786882,1778154712000,-1033.57,0.00030184,30]
[421786881,1778154712000,-1033.57,0.0003018,30]
[421786879,1778154712000,-1033.57,0.00030171,30]
[421786878,1778154712000,-1033.57,0.00030167,30]
[421786880,1778154712000,-1033.57,0.00030176,30]
[421786876,1778154712000,-1033.57,0.00030159,30]
[421786877,1778154712000,-1033.57,0.00030163,30]
[421786883,1778154712000,-1033.57,0.00030188,30]
[421786884,1778154712000,-1033.57,0.00030192,30]
[421786896,1778154712000,-183.23,0.00030801,2]
[421786885,1778154712000,-1033.57,0.00030196,30]
[421786887,1778154712000,-1561.01,0.000302,7]
[421786890,1778154712000,-284.9,0.00030239,2]
[421786893,1778154712000,-1250.0,0.00030685,5]
[421786891,1778154712000,-188.47,0.00030411,120]
[421786892,1778154712000,-152.0,0.00030601,5]
[421786901,1778154712000,-150.0,0.00030995,2]
[421786900,1778154712000,-3000.0,0.000309,11]
[421786899,1778154712000,-1630.87555416,0.0003084,2]
[421786898,1778154712000,-150.0,0.00030834,2]
[421786873,1778154712000,-1033.57,0.00030147,30]
[421786888,1778154712000,-401.14,0.000302,2]
[421786872,1778154712000,-1033.57,0.00030143,30]
[421786853,1778154712000,-364.57,0.0003013,15]
[421786874,1778154712000,-1033.57,0.00030151,30]
[421786894,1778154712000,-183.25,0.00030797,2]
[421786847,1778154712000,-1033.57,0.0003011,30]
[421786848,1778154712000,-1033.57,0.00030114,30]
[421786850,1778154712000,-1033.57,0.00030122,30]
[421786851,1778154712000,-1033.57,0.00030127,30]
[421786849,1778154712000,-1033.57,0.00030118,30]
[421786858,1778154712000,-188.18,0.00030136,7]
[421786854,1778154712000,-14040.04552376,0.0003013,2]
[421786852,1778154712000,-1088.12898625,0.0003013,2]
[421786855,1778154712000,-204.46310685,0.0003013,2]
[421786857,1778154712000,-1033.57,0.00030135,30]
[421786871,1778154712000,-1033.57,0.00030139,30]
[421786856,1778154712000,-1033.57,0.00030131,30]
[421786859,1778154712000,-1150.0,0.00030137,5]
[421786862,1778154712000,-1000.0,0.00030137,120]
[421786868,1778154712000,-192.26329149,0.00030137,40]
[421786864,1778154712000,-1000.0,0.00030137,120]
[421786866,1778154712000,-158.53609515,0.00030137,2]
[421786861,1778154712000,-200.0,0.00030137,2]
[421786863,1778154712000,-1008.36,0.00030137,2]
[421786865,1778154712000,-1000.0,0.00030137,120]
[421786867,1778154712000,-216.33,0.00030137,120]
[421786870,1778154712000,-150.9201695,0.00030137,5]
[421786869,1778154712000,-3958.0,0.00030137,120]
[421786860,1778154712000,-151.737409,0.00030137,7]
[421786895,1778154712000,-183.25,0.00030799,2]
[421786886,1778154712000,-15748.61310124,0.000302,2]
[421786902,1778154712000,-199.0,0.00030995,2]
[421786932,1778154712000,-160.0,0.00031164,30]
[421786927,1778154712000,-150.0,0.00031131,2]
[421786930,1778154712000,-150.0,0.00031131,2]
[421786929,1778154712000,-150.0,0.00031131,2]
[421786936,1778154712000,-1179.0,0.00031174,30]
[421786939,1778154712000,-200.0,0.00031235,2]
[421786938,1778154712000,-600.0,0.00031233,5]
[421786937,1778154712000,-154.0,0.00031174,30]
[421786944,1778154712000,-200.0,0.00031235,2]
[421786942,1778154712000,-200.0,0.00031235,2]
[421786941,1778154712000,-200.0,0.00031235,2]
[421786935,1778154712000,-1029.0,0.00031164,30]
[421786946,1778154712000,-298.0,0.00031235,2]
[421786940,1778154712000,-200.0,0.00031235,2]
[421786945,1778154712000,-200.0,0.00031235,2]
[421786948,1778154712000,-231.0,0.00031284,2]
[421786947,1778154712000,-150.0,0.00031284,2]
[421786951,1778154712000,-274.0,0.0003132,2]
[421786950,1778154712000,-150.0,0.0003132,2]
[421786949,1778154712000,-150.0,0.0003132,2]
[421786953,1778154712000,-200.0,0.00031333,2]
[421786952,1778154712000,-200.0,0.00031333,2]
[421786954,1778154712000,-200.0,0.00031333,2]
[421786897,1778154712000,-183.25,0.00030801,2]
[421786943,1778154712000,-200.0,0.00031235,2]
[421786934,1778154712000,-152.0,0.00031164,30]
[421786903,1778154712000,-11019.50326122,0.00031,2]
[421786933,1778154712000,-163.0,0.00031164,30]
[421786905,1778154712000,-4886.92153642,0.00031,30]
[421786906,1778154712000,-10016.83254894,0.00031,120]
[421786904,1778154712000,-348.92569943,0.00031,5]
[421786911,1778154712000,-160.0,0.00031,120]
[421786907,1778154712000,-1561.01,0.00031,7]
[421786910,1778154712000,-214.63993676,0.00031,7]
[421786931,1778154712000,-158.0,0.00031131,2]
[421786909,1778154712000,-214.63993676,0.00031,30]
[421786912,1778154712000,-150.0,0.00031011,2]
[421786914,1778154712000,-234.0,0.00031038,2]
[421786916,1778154712000,-189.0,0.00031071,2]
[421786913,1778154712000,-150.0,0.00031038,2]
[421786908,1778154712000,-5000.0,0.00031,2]
[421786917,1778154712000,-200.0,0.00031096,2]
[421786915,1778154712000,-150.0,0.00031071,2]
[421786928,1778154712000,-150.0,0.00031131,2]
[421786925,1778154712000,-150.0,0.00031131,2]
[421786923,1778154712000,-150.0,0.00031131,2]
[421786922,1778154712000,-332.81043525,0.00031103,2]
[421786926,1778154712000,-150.0,0.00031131,2]
[421786924,1778154712000,-150.0,0.00031131,2]
[421786921,1778154712000,-195.0,0.00031099,2]
[421786919,1778154712000,-150.0,0.00031099,2]
[421786918,1778154712000,-150.0,0.00031099,2]
[421786920,1778154712000,-150.0,0.00031099,2]
[421786995,1778154713000,-990.04,0.00032877,7]
[421786997,1778154713000,-151.78933463,0.000329,2]
[421786998,1778154713000,-5839.31555837,0.00033,3]
[421786996,1778154713000,-406.58,0.00032877,2]
[421786993,1778154713000,-150.0,0.00032834,2]
[421786987,1778154713000,-154.0,0.00032174,30]
[421786992,1778154713000,-3801.12340065,0.00032772,2]
[421786983,1778154713000,-152.0,0.00032164,30]
[421786985,1778154713000,-1179.0,0.00032174,30]
[421786991,1778154713000,-152.0,0.00032597,7]
[421786994,1778154713000,-1749.21228048,0.0003287,4]
[421786999,1778154713000,-1561.01,0.00033,30]
[421787013,1778154713000,-1561.01,0.000339,30]
[421787000,1778154713000,-570.407597,0.00033,14]
[421787003,1778154713000,-162.0,0.00033164,30]
[421787002,1778154713000,-350.0,0.00033014,2]
[421787005,1778154713000,-153.0,0.00033164,30]
[421787004,1778154713000,-165.0,0.00033164,30]
[421787015,1778154713000,-9044.0,0.00034,15]
[421787016,1778154713000,-150.0,0.00034077,7]
[421787006,1778154713000,-1029.0,0.00033164,30]
[421787007,1778154713000,-1179.0,0.00033174,30]
[421787008,1778154713000,-154.0,0.00033174,30]
[421786989,1778154713000,-310.0,0.0003237,24]
[421787011,1778154713000,-150.0,0.00033834,2]
[421787001,1778154713000,-428.33852217,0.00033,7]
[421786990,1778154713000,-150.0,0.00032562,2]
[421786981,1778154713000,-160.0,0.00032164,30]
[421786984,1778154713000,-1029.0,0.00032164,30]
[421786956,1778154713000,-200.0,0.00031333,2]
[421786955,1778154713000,-200.0,0.00031333,2]
[421786957,1778154713000,-200.0,0.00031333,2]
[421786958,1778154713000,-200.0,0.00031333,2]
[421786960,1778154713000,-200.0,0.00031333,2]
[421786969,1778154713000,-2000.0,0.00031507,30]
[421786966,1778154713000,-20130.22740958,0.0003143,4]
[421786965,1778154713000,-7503.51,0.000314,7]
[421786961,1778154713000,-164.0,0.00031333,2]
[421786964,1778154713000,-177.0,0.00031334,2]
[421786959,1778154713000,-200.0,0.00031333,2]
[421786968,1778154713000,-150.0,0.000315,2]
[421786988,1778154713000,-284.9,0.0003221,5]
[421786963,1778154713000,-150.0,0.00031334,2]
[421786971,1778154713000,-152.0,0.00031599,6]
[421787009,1778154713000,-152.0,0.00033595,8]
[421786970,1778154713000,-156.0,0.00031571,2]
[421786978,1778154713000,-1757.02799659,0.00032,2]
[421786973,1778154713000,-502.59090427,0.000316,2]
[421786977,1778154713000,-46922.07580709,0.00032,120]
[421786975,1778154713000,-272.0,0.00031808,2]
[421786980,1778154713000,-200.0,0.00032055,2]
[421786979,1778154713000,-1561.01,0.00032,7]
[421786972,1778154713000,-502.59090427,0.000316,2]
[421786976,1778154713000,-150.0,0.00031834,2]
[421786982,1778154713000,-163.0,0.00032164,30]
[421786967,1778154713000,-200.08839873,0.000315,2]
[421787010,1778154713000,-332.81043525,0.00033803,2]
[421786962,1778154713000,-150.0,0.00031334,2]
[421787018,1778154713000,-387.67,0.00034098,2]
[421787047,1778154713000,-1566.65884177,0.00035616,7]
[421787052,1778154713000,-1566.65884177,0.00035616,7]
[421787050,1778154713000,-1566.65884177,0.00035616,7]
[421787048,1778154713000,-1566.65884177,0.00035616,7]
[421787051,1778154713000,-1566.65884177,0.00035616,7]
[421787055,1778154713000,-1566.65884177,0.00035616,7]
[421787057,1778154713000,-1566.65884177,0.00035616,7]
[421787058,1778154713000,-1566.65884177,0.00035616,7]
[421787067,1778154713000,-1566.65884177,0.00035616,7]
[421787059,1778154713000,-1566.65884177,0.00035616,7]
[421787066,1778154713000,-1566.65884177,0.00035616,7]
[421787056,1778154713000,-1566.65884177,0.00035616,7]
[421787062,1778154713000,-1566.65884177,0.00035616,7]
[421787060,1778154713000,-1566.65884177,0.00035616,7]
[421787064,1778154713000,-1566.65884177,0.00035616,7]
[421787063,1778154713000,-1566.65884177,0.00035616,7]
[421787061,1778154713000,-1566.65884177,0.00035616,7]
[421787065,1778154713000,-1566.65884177,0.00035616,7]
[421787069,1778154713000,-1566.65884177,0.00035616,7]
[421787068,1778154713000,-1566.65884177,0.00035616,7]
[421787073,1778154713000,-1566.65884177,0.00035616,7]
[421787070,1778154713000,-1566.65884177,0.00035616,7]
[421787074,1778154713000,-1566.65884177,0.00035616,7]
[421787072,1778154713000,-1566.65884177,0.00035616,7]
[421787071,1778154713000,-1566.65884177,0.00035616,7]
[421787076,1778154713000,-1566.65884177,0.00035616,7]
[421787014,1778154713000,-350.0,0.00033973,2]
[421787049,1778154713000,-1566.65884177,0.00035616,7]
[421787046,1778154713000,-1566.65884177,0.00035616,7]
[421786974,1778154713000,-502.59090427,0.000316,2]
[421787053,1778154713000,-1566.65884177,0.00035616,7]
[421787028,1778154713000,-382.07,0.00034931,2]
[421787045,1778154713000,-1566.65884177,0.00035616,7]
[421787019,1778154713000,-1029.0,0.00034164,30]
[421787017,1778154713000,-150.0,0.00034077,7]
[421787023,1778154713000,-150.0,0.0003419,2]
[421787022,1778154713000,-284.9,0.00034182,7]
[421787025,1778154713000,-152.0,0.00034593,9]
[421787027,1778154713000,-150.0,0.00034834,2]
[421787021,1778154713000,-154.0,0.00034174,30]
[421787024,1778154713000,-154.0,0.00034521,10]
[421787026,1778154713000,-1455.11982277,0.00034795,2]
[421787029,1778154713000,-340000.0,0.00035,4]
[421787031,1778154713000,-4808.55576742,0.00035,7]
[421787030,1778154713000,-526.0,0.00035,5]
[421787020,1778154713000,-1179.0,0.00034174,30]
[421787041,1778154713000,-164.04984017,0.00035616,60]
[421787040,1778154713000,-152.0,0.00035591,10]
[421787044,1778154713000,-1566.65884177,0.00035616,7]
[421787054,1778154713000,-1566.65884177,0.00035616,7]
[421787038,1778154713000,-340.0,0.00035396,2]
[421787035,1778154713000,-1179.0,0.00035174,30]
[421787043,1778154713000,-500.0,0.00035616,5]
[421787036,1778154713000,-154.0,0.00035174,30]
[421787039,1778154713000,-417.29172166,0.00035396,2]
[421787037,1778154713000,-340.0,0.00035396,2]
[421787032,1778154713000,-2439.17105514,0.00035,7]
[421787034,1778154713000,-1029.0,0.00035164,30]
[421787033,1778154713000,-5521.63412221,0.00035,3]
[421787099,1778154714000,-1527.49237072,0.00035616,7]
[421787106,1778154714000,-1527.49237072,0.00035616,7]
[421787098,1778154714000,-1566.65884177,0.00035616,7]
[421787105,1778154714000,-1527.49237072,0.00035616,7]
[421787107,1778154714000,-1527.49237072,0.00035616,7]
[421787116,1778154714000,-1527.49237072,0.00035616,7]
[421787109,1778154714000,-1527.49237072,0.00035616,7]
[421787110,1778154714000,-1527.49237072,0.00035616,7]
[421787115,1778154714000,-1527.49237072,0.00035616,7]
[421787118,1778154714000,-1527.49237072,0.00035616,7]
[421787111,1778154714000,-1527.49237072,0.00035616,7]
[421787108,1778154714000,-1527.49237072,0.00035616,7]
[421787114,1778154714000,-1527.49237072,0.00035616,7]
[421787113,1778154714000,-1527.49237072,0.00035616,7]
[421787128,1778154714000,-1527.49237072,0.00035616,7]
[421787117,1778154714000,-1527.49237072,0.00035616,7]
[421787124,1778154714000,-1527.49237072,0.00035616,7]
[421787125,1778154714000,-1527.49237072,0.00035616,7]
[421787123,1778154714000,-1527.49237072,0.00035616,7]
[421787101,1778154714000,-1527.49237072,0.00035616,7]
[421787112,1778154714000,-1527.49237072,0.00035616,7]
[421787102,1778154714000,-1527.49237072,0.00035616,7]
[421787087,1778154714000,-1566.65884177,0.00035616,7]
[421787103,1778154714000,-1527.49237072,0.00035616,7]
[421787080,1778154714000,-1566.65884177,0.00035616,7]
[421787079,1778154714000,-1566.65884177,0.00035616,7]
[421787081,1778154714000,-1566.65884177,0.00035616,7]
[421787077,1778154714000,-1566.65884177,0.00035616,7]
[421787078,1778154714000,-1566.65884177,0.00035616,7]
[421787082,1778154714000,-1566.65884177,0.00035616,7]
[421787083,1778154714000,-1566.65884177,0.00035616,7]
[421787093,1778154714000,-1566.65884177,0.00035616,7]
[421787089,1778154714000,-1566.65884177,0.00035616,7]
[421787084,1778154714000,-1566.65884177,0.00035616,7]
[421787096,1778154714000,-1566.65884177,0.00035616,7]
[421787086,1778154714000,-1566.65884177,0.00035616,7]
[421787088,1778154714000,-1566.65884177,0.00035616,7]
[421787085,1778154714000,-1566.65884177,0.00035616,7]
[421787090,1778154714000,-1566.65884177,0.00035616,7]
[421787091,1778154714000,-1566.65884177,0.00035616,7]
[421787092,1778154714000,-1566.65884177,0.00035616,7]
[421787095,1778154714000,-1566.65884177,0.00035616,7]
[421787094,1778154714000,-1566.65884177,0.00035616,7]
[421787100,1778154714000,-1527.49237072,0.00035616,7]
[421787104,1778154714000,-1527.49237072,0.00035616,7]
[421787097,1778154714000,-1566.65884177,0.00035616,7]
[421787126,1778154714000,-1527.49237072,0.00035616,7]
[421787120,1778154714000,-1527.49237072,0.00035616,7]
[421787129,1778154714000,-1527.49237072,0.00035616,7]
[421787121,1778154714000,-1527.49237072,0.00035616,7]
[421787154,1778154714000,-1067.70039811,0.00036908,2]
[421787163,1778154714000,-1005.70106929,0.00037,2]
[421787156,1778154714000,-1067.70039811,0.00036957,2]
[421787162,1778154714000,-160.0,0.00037,90]
[421787157,1778154714000,-503.03127867,0.00036962,2]
[421787160,1778154714000,-12816.71063065,0.00036988,2]
[421787158,1778154714000,-610.9872607,0.00036986,60]
[421787155,1778154714000,-107522.44700745,0.00036919,2]
[421787119,1778154714000,-1527.49237072,0.00035616,7]
[421787159,1778154714000,-631.35350271,0.00036986,60]
[421787165,1778154714000,-2500.0,0.00037,70]
[421787171,1778154714000,-90906.66623329,0.00037045,2]
[421787167,1778154714000,-340.0,0.00037005,2]
[421787169,1778154714000,-340.0,0.00037005,2]
[421787168,1778154714000,-340.0,0.00037005,2]
[421787164,1778154714000,-168.15549052,0.00037,2]
[421787166,1778154714000,-10000.0,0.00037,7]
[421787172,1778154714000,-2530.45748272,0.00037045,2]
[421787170,1778154714000,-5922.99219513,0.00037032,2]
[421787173,1778154714000,-14085.32329144,0.00037045,2]
[421787174,1778154714000,-12483.94603261,0.0003706,2]
[421787152,1778154714000,-2600.78,0.0003678,10]
[421787153,1778154714000,-150.0,0.00036834,2]
[421787161,1778154714000,-160.0,0.00037,120]
[421787145,1778154714000,-154.0,0.00036174,30]
[421787150,1778154714000,-152.0,0.00036589,11]
[421787127,1778154714000,-1527.49237072,0.00035616,7]
[421787122,1778154714000,-1527.49237072,0.00035616,7]
[421787130,1778154714000,-1527.49237072,0.00035616,7]
[421787131,1778154714000,-1527.49237074,0.00035616,7]
[421787132,1778154714000,-1527.49237074,0.00035616,7]
[421787134,1778154714000,-1527.49237073,0.00035616,7]
[421787133,1778154714000,-1527.49237074,0.00035616,7]
[421787138,1778154714000,-191.62454006,0.00036,120]
[421787135,1778154714000,-500.0,0.00035616,5]
[421787139,1778154714000,-10000.0,0.00036,7]
[421787143,1778154714000,-1029.0,0.00036164,30]
[421787136,1778154714000,-150.0,0.00035834,2]
[421787137,1778154714000,-150.0,0.00035899,2]
[421787149,1778154714000,-310.0,0.00036561,41]
[421787148,1778154714000,-332.81043525,0.00036502,2]
[421787146,1778154714000,-1000.0,0.00036438,5]
[421787147,1778154714000,-500.0,0.00036493,2]
[421787144,1778154714000,-1179.0,0.00036174,30]
[421787140,1778154714000,-214.63993676,0.00036,7]
[421787142,1778154714000,-284.9,0.00036153,30]
[421787141,1778154714000,-214.63993676,0.00036,30]
[421787151,1778154714000,-1001.85498623,0.00036712,5]
[421787182,1778154715000,-715.49750842,0.0003706,2]
[421787175,1778154715000,-2547.2,0.00027397,10]
[421787179,1778154715000,-2480.69075194,0.0003706,2]
[421787176,1778154715000,-2198.99553942,0.00028937,2]
[421787178,1778154715000,-380.52932165,0.0003706,2]
[421787177,1778154715000,-21657.59672911,0.0003706,2]
[421787180,1778154715000,-2488.11649926,0.0003706,2]
[421787183,1778154715000,-284.89218034,0.00037071,2]
[421787181,1778154715000,-2742.37269276,0.0003706,2]
[421787189,1778154715000,-301.10560573,0.00037071,2]
[421787186,1778154715000,-1057.34807241,0.00027397,10]
[421787185,1778154715000,-1065.32192759,0.00027397,10]
[421787187,1778154715000,-109.32194515,0.00032957,2]
[421787188,1778154715000,-2089.67359427,0.00032957,2]
[421787191,1778154715000,-4084.19095138,0.00037071,2]
[421787193,1778154715000,-12430.712656,0.00037071,2]
[421787190,1778154715000,-1981.61808479,0.00037071,2]
[421787192,1778154715000,-339.39253979,0.00037071,2]
[421787184,1778154715000,-875.50000001,0.00037071,2]
[421787196,1778154750000,-150.0,0.0001189,2]
[421787197,1778154813000,7972.0,0.00030137,120]
[421787198,1778154831000,152.0,0.00012001,7]
[421787203,1778154903000,28217.79,0.0002,30]
[421787204,1778154904000,25604.54,0.00022,30]
[421787215,1778155005000,59944.83,0.0002,30]
[421787216,1778155006000,5195.29,0.00022,30]
[421787234,1778155061000,-703.79,0.00015965,2]
[421787235,1778155061000,-211.0,0.00016,2]
[421787225,1778155061000,-1200.0,0.00012858,2]
[421787226,1778155061000,-300.0,0.00012858,2]
[421787228,1778155061000,-420.0,0.00014103,2]
[421787229,1778155061000,-1151.0,0.00014144,2]
[421787224,1778155061000,-1001.85202506,0.00012505,2]
[421787230,1778155061000,-315.61926631,0.00014976,3]
[421787231,1778155061000,-703.79,0.00015167,2]
[421787233,1778155061000,-2500000.0,0.00015528,2]
[421787232,1778155061000,-587.0,0.00015468,2]
[421787227,1778155061000,-1000.0,0.00013652,2]
[421787223,1778155061000,-250.0,0.00012197,2]
[421787236,1778155106000,5839.96,0.0002,30]
[421787237,1778155107000,432.44,0.00022,30]
[421787239,1778155296000,2000.005,0.00022,30]
[421787241,1778155357000,575.19163535,0.00011,2]
[421787248,1778155477000,200.0,8.341e-05,2]
[421787249,1778155478000,49800.0,0.00012,2]
[421787250,1778155479000,50000.0,0.00012,2]
[421787251,1778155514000,152.0,0.00012001,7]
[421787254,1778155559000,-936613.78729923,0.00012,2]
[421787253,1778155559000,-300.0,0.00011999,2]
[421787255,1778155599000,202.79,0.00030137,120]
[421787277,1778155831000,-15452.87417114,0.00015066,2]
[421787258,1778155831000,-309.65423275,0.0001356,2]
[421787257,1778155831000,-250.0,0.0001338,2]
[421787260,1778155831000,-25.81595185,0.00014009,2]
[421787259,1778155831000,-844.18404815,0.00014009,2]
[421787261,1778155831000,-1223.05334109,0.0001401,2]
[421787263,1778155831000,-209.03213232,0.0001401,2]